Cogmind - Beta 17 *** ADVENTURER MODE // 2026.07.20 @ 19:11:59 Player: Asterix Result: Destroyed by as-89361 with Assembled Blade Performance ------------- Evolutions (0) 0 Regions Visited (0) 0 Robots Destroyed (2) 10 Value Destroyed (60) 60 Prototype IDs (0) 0 Alien Tech Used (0) 0 Bonus (0) 0 TOTAL SCORE: 70 Bonus ------- None Cogmind --------- Core Integrity 0/250 Matter 300/300 Energy 69/100 System Corruption 1% Temperature Cool (0) Movement Core (50) Location -11/Scrapyard Parts ------- > --- POWER (1) -------- (None) > --- PROPULSION (2) --- (None) > --- UTILITY (2) ------ (None) > --- WEAPON (2) ------- (None) > --- INVENTORY (5) ---- Light Treads Wheel Compact Wheel Peak State ------------ > --- POWER ------------ Ion Engine > --- PROPULSION ------- Light Treads Light Treads > --- UTILITY ---------- Small Storage Unit Improved Terrain Scanner > --- WEAPON ----------- Medium Laser Light Assault Rifle > --- INVENTORY -------- Ion Engine Aluminum Leg Aluminum Leg [Rating: 9] Favorites ----------- Power Ion Engine Engine Ion Engine Propulsion Light Treads Treads Light Treads Leg Aluminum Leg Utility Small Storage Unit Device Improved Terrain Scanner Storage Small Storage Unit Weapon Light Assault Rifle Energy Gun Medium Laser Ballistic Gun Light Assault Rifle Build | -11 ------- Run | Yrd Slots Evolved . | . Power . | . Propulsion . | . Utility . | . Weapon . | . Parts Attached 11 | 11 Power 2 | 2 Engine 2 | 2 Core . | . Reactor . | . Propulsion 4 | 4 Treads 2 | 2 Leg 2 | 2 Wheel . | . Hover . | . Flight . | . Utility 2 | 2 Device 1 | 1 Storage 1 | 1 Processor . | . Hackware . | . Protection . | . Artifact . | . Weapon 3 | 3 Energy Gun 2 | 2 Energy Cannon . | . Ballistic Gun 1 | 1 Ballistic Cannon . | . Launcher . | . Special Weapon . | . Impact Weapon . | . Slashing Weapon . | . Piercing Weapon . | . Special Melee Weapon . | . Unidentified Prototypes . | . Parts Lost 5 | 5 Power 1 | 1 Propulsion 1 | 1 Utility 1 | 1 Weapon 2 | 2 Highest Loss Streak 3 | 3 To Critical Strikes . | . Average Backups 3 | 3 Power . | . Propulsion 2 | 2 Utility . | . Weapon . | . Tool/Special . | . Unused Backups 2 | 2 Power . | . Propulsion 2 | 2 Utility . | . Weapon . | . Tool/Special . | . Average Slot Usage (%) . | . Peak Build Rating 9 | 9 Average Rating 6 | 6 On Entrance . | . Avg Prop Armor Cover (%) . | . Naked Turns . | . Heaviest Build 14 | 14 Greatest Support 40 | 40 Greatest Overweight (x) . | . Average Overweight (x) . | . Largest Inventory Capacity 8 | 8 Average Capacity 7 | 7 Most Carried 5 | 5 Average Carried 3 | 3 Final Capacity 5 | 5 Final Carried 3 | 3 Class Distribution -------------------- None Dominant Class ---------------- None Resources | -11 ----------- Run | Yrd Matter Collected 312 | 312 Remotely . | . Salvage Created 68 | 68 Parts 2 | 2 Haulers Intercepted . | . Recyclers Shooed . | . Parts Field Recycled . | . Retrieved Matter . | . Parts Self-Destructed . | . Prevented . | . Parts Restored . | . Kills | -11 ------- Run | Yrd Combat Hostiles Destroyed 4 | 4 Guns 4 | 4 Classes Destroyed 3 | 3 Tunneler 1 | 1 Demolisher 1 | 1 Assembled 3 | 3 Best Kill Streak 3 | 3 Combat Bots Only 3 | 3 Max Kills in Single Turn 1 | 1 Gunslinging . | . Exploded . | . Melee . | . Uniques/NPCs Destroyed . | . Combat | -11 -------- Run | Yrd Hostile Shots Fired 54 | 54 Missed 10 | 10 Hits 44 | 44 Melee 5 | 5 Projectile 39 | 39 AOE 13 | 13 Damage Taken 983 | 983 Core 265 | 265 Absorbed by Shields . | . Ignored by Resistances 213 | 213 Core Remaining (%) . | . Volleys Fired 23 | 23 Largest 2 | 2 Hottest 70 | 70 Shots Fired 41 | 41 Gun 41 | 41 Cannon . | . Launcher . | . Special . | . Kinetic 23 | 23 Thermal 8 | 8 Explosive . | . Electromagnetic 10 | 10 Robot Hit Streak 14 | 14 Robot Miss Streak 2 | 2 Penetration Max . | . Secondary Targets . | . Shots Hit Robots 30 | 30 Core Hits 14 | 14 Critical Kills . | . Critical Parts Destroyed . | . Critical Strikes 1 | 1 Burn 1 | 1 Melee Attacks . | . Impact . | . Slashing . | . Piercing . | . Sneak Attacks . | . Combat Hostiles . | . Follow-up Attacks . | . Damage Inflicted 302 | 302 Guns 298 | 298 Cannons . | . Explosions . | . Melee . | . Ramming 4 | 4 Kinetic 145 | 145 Thermal 87 | 87 Explosive . | . Electromagnetic 66 | 66 Impact . | . Slashing . | . Piercing . | . Highest Corruption 1 | 1 Average Corruption 1 | 1 Corruption Purged . | . Corruption Blocked . | . Overload Shots . | . Overflow Damage . | . Projectiles . | . Explosions . | . Melee . | . Knockbacks . | . Impact . | . Kinetic . | . Secondary . | . Self-Inflicted Damage . | . Shots . | . Rammed . | . Targets Rammed 2 | 2 Kicked 2 | 2 Crushed . | . Highest Temperature 90 | 90 Average Temperature 26 | 26 Received Heat Transfer . | . Siege Activations . | . Martial Activations . | . Shielding Activations . | . Robots Disrupted . | . Combat Hostiles . | . Robots Corrupted . | . Combat Hostiles . | . Parts Fried . | . Impact Corruptions . | . Robots Melted . | . Combat Hostiles . | . Parts Melted 1 | 1 Heat Transferred 333 | 333 Parts Sabotaged . | . Parts Stolen . | . Parts Stripped . | . Power Chain Reactions . | . Alert | -11 ------- Run | Yrd Maximum Alert Level . | . Low Security (%) 100 | 100 Level 1 . | . Level 2 . | . Level 3 . | . Level 4 . | . Level 5 . | . High Security . | . Max Security . | . Peak Influence 30 | 30 Initial . | . Average . | . Influence Increases 35 | 35 Destroy 0b10 Robot/C 20 | 20 Destroy 0b10 Robot/NC 5 | 5 Destroy Leader 10 | 10 Influence Decreases 35 | 35 Time Decay 35 | 35 Squads Dispatched . | . Investigation . | . Extermination . | . Reinforcement . | . Assault . | . Garrison . | . Intercept . | . Searches Triggered . | . Construction Impeded . | . Haulers Reinforced . | . Active Scanning Responses . | . Cargo Convoy Interrupts . | . Stealth | -11 --------- Run | Yrd Distress Signals . | . Communications Jammed . | . Distress Signals . | . Times Spotted 12 | 12 Peak Tracking Total 7 | 7 Tactical Retreats . | . Traps | -11 ------- Run | Yrd Traps Triggered . | . Indirectly . | . Trap Hack Attempts . | . Triggered . | . Disarmed . | . Reprogrammed . | . Reused . | . Traps Extracted . | . Installed . | . Triggered . | . Machines | -11 ---------- Run | Yrd Machines Disabled . | . Max in Single Turn . | . Machines Repaired . | . Machines Dismantled . | . Machines Sabotaged . | . Overloaded Fab Kills . | . Hacking | -11 --------- Run | Yrd Machines Accessed . | . Terminals . | . Fabricators . | . Repair Stations . | . Recycling Units . | . Scanalyzers . | . Garrison Access . | . Total Hacks . | . Successful . | . Failed . | . Catastrophic . | . Database Lockouts . | . Manual . | . Terminals . | . Fabricators . | . Repair Stations . | . Recycling Units . | . Scanalyzers . | . Garrison Access . | . Terminal Hacks . | . Fabricator Hacks . | . Repair Station Hacks . | . Recycling Unit Hacks . | . Scanalyzer . | . Garrison Access Hacks . | . Unauthorized Hacks . | . Terminals . | . Fabricators . | . Repair Stations . | . Recycling Units . | . Scanalyzers . | . Garrison Access . | . Data Cores Recovered . | . Used . | . Hacking Detections . | . Full Trace Events . | . Feedback Events . | . Feedback Blocked . | . Robot Schematics Acquired . | . Robots Built . | . Authchips . | . Time . | . Total Robot Build Rating . | . Part Schematics Acquired . | . Parts Built . | . Authchips . | . Time . | . Total Part Build Rating . | . Part Studies Acquired . | . Parts Repaired . | . Time . | . Parts Recycled . | . Recycled Matter . | . Retrieved Matter . | . Retrieved Components . | . Parts Scanalyzed . | . Part Schematics Acquired . | . Parts Damaged . | . Bothacking | -11 ------------ Run | Yrd Used RIF Installer . | . Robots Hacked . | . Non-combat . | . Combat . | . Robot Hacks Applied . | . Relay Couplers Released . | . Fabnet Peak Effective % . | . Robots Rewired . | . Allies Hacked . | . Hacks Repelled . | . Allies | -11 -------- Run | Yrd Total Allies . | . Largest Group . | . Highest-Rated Group . | . Highest-Rated Ally . | . Total Orders . | . Ally Attacks . | . Total Damage . | . Kills . | . Allies Corrupted . | . Allies Melted . | . Intel | -11 ------- Run | Yrd Active Infowar (turns) 1174 | 1174 Terrain 1174 | 1174 Robot Analysis Total . | . Derelict Logs Recovered . | . Drone Launches . | . Drone Recoveries . | . Exploration | -11 ------------- Run | Yrd Turns Passed 4729 | 4729 Spaces Moved 1090 | 1090 Core 23 | 23 Treads 1055 | 1055 Legs 12 | 12 Wheels . | . Hover . | . Flight . | . Fastest Speed 50 | 50 Average Speed 157 | 157 Slowest Speed 160 | 160 Overloaded Moves . | . Propulsion Burnouts . | . Robots Hopped . | . Potential Cave-ins 2 | 2 Cave-ins Triggered 1 | 1 Exploration Rate (%) 47 | 47 Regions Visited . Branch Regions . Pre-discovered Areas . | . Known Exits Taken . | . Unknown Exits Taken . | . Scrap Searched . | . Spaces Dug . | . Terrain Destroyed . | . Melee . | . Projectile . | . AOE . | . Terrain Rammed . | . Walls Destroyed . | . Machines Disabled . | . Actions | -11 --------- Run | Yrd Total 4070 | 4070 Wait 2927 | 2927 Move 1090 | 1090 Hop . | . Pick Up 12 | 12 Fast Attach 1 | 1 Attach 9 | 9 Detach . | . Swap 1 | 1 Drop 5 | 5 Fire 23 | 23 Melee . | . Ram . | . Kick 2 | 2 Crush . | . Escape Stasis . | . Rewire . | . Trap . | . Miscellaneous . | . Route ------- -11/Scrapyard (discovered 1 exit: [*Mat]) History --------- Turn | Location | Event 5 | -11/Scrapyard | Discovered new exit (range 13) 4531 | -11/Scrapyard | Assembled infested the area 4693 | -11/Scrapyard | Crushed by falling debris 4693 | -11/Scrapyard | Core integrity fell below 50% 4725 | -11/Scrapyard | Core integrity fell below 20% 4728 | -11/Scrapyard | Lost 3 parts (1p1n1u) 4730 | -11/Scrapyard | Destroyed by as-89361 with Assembled Blade Last Messages --------------- Imp. Terrain Scanner destroyed. System corrupted by crushing effect (+1). K-01 Serf collects debris. Ion Engine destroyed. K-01 Serf collects debris. as-72824 destroyed. The unstable cave ceiling collapses. Kicked T-07 Excavator. Kicked T-07 Excavator out of the way. K-01 Serf destroyed. Acquired 18 matter. Acquired 7 matter. as-88295 destroyed. Acquired 1 matter. T-07 Excavator destroyed. Dropped Ion Engine. Lgt. Assault Rifle destroyed. Dropped Aluminum Leg. Dropped Sml. Storage Unit. Dropped EM Pulse Gun. Map ----- +----------------------------------------------------+ | ?????????????????????????????????????????????????? | | ?????????????????????????????????????????????????? | | ?????????????????????????????????????????????????? | | ?????????????????????????????????????????????????? | | ?????????????????????????????????????????????????? | | ?????????????????????????????????????????????????? | | ?????????????????????????????????????????????????? | | ?????????????????????????????????????????????????? | | ?????????????????????????????????????????????????? | | ????????????????????????####?????????????????????? | | ??????????????????????### ##????????????????????? | | ??????????????????????# ##???????????????????? | | ??????????????????????# #???????????????????? | | ??????????????????????### #???????????????????? | | ????????????????????????# ###???????????????????? | | ????????????????????????# #?????????????????????? | | ????????????????????????# #?????????????????????? | | ????????????????????????# #?????????????????????? | | ????????????????????????#a #?????????????????????? | | ????????????????????????# #?????????????????????? | | ????????????????????????#a #???########??????????? | | ????????????????????????# #???# #??????????? | | ????????????????????????# #???# #??????????? | | ????????????????????????# #???# #??????????? | | #########???????????????# a#???# #??????????? | | # #???????????????#@a#???# #??????????? | | #???????????????#!*#???# ######?????? | | #???????????????# a#### ### ### #?#???? | | #??????#????????# a ##??### | | #??????????#??#?# %*%! =%! #????## | | #???????????????#### ## ### ### ###?##? | | #?#???????????#?# # ## ##??#??# | | #????############ # ## ##??##?# | | ### ######???# ## # ## #?##### | | ##### ## # *## #?# | | ## # |% # #?# | | ####### ##### ## # ### | | ??????# #???# ############## #### | | ??????# #?#?# ############ # | | ??????# #??## # #?## %! # | | ???#?## ##??# # #?### %# | | ??#?## ########## ### #### ! | | ????# = | | ?#??## # # | | ?????# #### ########## ##### < ### | | ?????#####??###????????# ##?## # | | ??#??????????????????### ###### ## # ## | | ###########????????######## #####?#?## ## | | #???#????# # ##???##?#### # ### | | #??#?????# # ###?####?#?######## | +----------------------------------------------------+ Best States ------------- Heat Dissipation 25 Energy Generation 10 Energy Capacity 250 Matter Stores 300 Matter Capacity 300 Sight Range 16 Terrain Scan Range 16 Terrain Scan Density 10 Resistance: KI 20 Resistance: TH 20 Resistance: EX 20 Resistance: EM 20 Resistance: I 20 Resistance: S 20 Resistance: P 20 Evasion (%) 50 Recoil Reduction 2 Offensive Hacking 10 Item Schematics ----------------- None Robot Schematics ------------------ None Fabricated ------------ Nothing Repaired ---------- Nothing Studied --------- None Alien Tech Used ----------------- None Achievements -------------- None Challenges ------------ None Game ------ Seed RefineryCryofiberMultirail Manual? 0 Play Time 00:24:06 Cumulative 14.1 hours Start 2026.07.20 @ 18:56:43 End 2026.07.20 @ 19:11:59 Sessions 0 Manual Loads 0 Difficulty Adventurer Special Mode None Game No. 18 Rogue 9 Adventurer 9 Explorer 0 Win Type - Total 0 Types 0/0/0/0/0/0/0/0/0/0 Lore% 11 Gallery% 15 Achievement% 13 Wizard Run 0 Options --------- Layout 1 ASCII 0 Keyboard 0 Movement Mouse Keybinds 0 Fullscreen 1 Font 32/SmallcapsGlow Map View 50x40 Zoom Use 0% Tactical HUD 0 Map Filters NONE Filters NONE Steam 1 RUN: 94141f2b-b7bd-46d4-bba3-2d7dfec7bfd3